Cogmind - Beta 10.2 @@@ ROGUE MODE // 2021.03.17 @ 17:14:06 Player: Moodge Result: Destroyed by G-47 Trooper with Particle Gun Performance ------------- Evolutions (2) 1000 Regions Visited (6) 1200 Robots Destroyed (31) 155 Value Destroyed (776) 776 Prototype IDs (2) 40 Alien Tech Used (0) 0 Bonus (314) 314 TOTAL SCORE: 3485 Bonus ------- High Alert Combat Kills 14 Aligned with FarCom 300 Cogmind --------- Core Integrity 0/550 Matter 300/300 Energy 100/100 System Corruption 1% Temperature Cool (9) Movement Core (50) Location -8/Materials Parts ------- > --- POWER (1) -------- (None) > --- PROPULSION (3) --- (None) > --- UTILITY (5) ------ PSU Rigger > --- WEAPON (2) ------- (None) > --- INVENTORY (4) ---- (None) Peak State ------------ > --- POWER ------------ Nuclear Core > --- PROPULSION ------- Aluminum Leg Aluminum Leg Aluminum Leg > --- UTILITY ---------- Humpback Sensor Array High-powered Tractor Beam PSU Rigger > --- WEAPON ----------- Minigun Minigun > --- INVENTORY -------- Light Deuterium Engine Aluminum Leg High-capacity Matter Pod Advanced Visual Processing Unit Army-in-a-Box [Rating: 31] Favorites ----------- Power Light Ion Engine Engine Light Ion Engine Power Core Nuclear Core Propulsion Aluminum Leg Leg Aluminum Leg Wheel Compact Wheel Utility High-capacity Storage Unit Device PSU Rigger Storage High-capacity Storage Unit Processor Improved Signal Interpreter Protection Hardened Light Armor Plating Weapon Minigun Energy Gun EM Pulse Gun Ballistic Gun Minigun Build | -11 -10 -9 -9 -9 -8 -8 ------- Run | Scr Mat Mat Min Exi Min Mat Slots Evolved 4 | . . 2 . . . 2 Power . | . . . . . . . Propulsion 1 | . . 1 . . . . Utility 3 | . . 1 . . . 2 Weapon . | . . . . . . . Parts Attached 26 | 6 4 6 . 5 . 5 Power 2 | 1 . . . . . 1 Engine 1 | 1 . . . . . . Core 1 | . . . . . . 1 Reactor . | . . . . . . . Propulsion 6 | 2 . 3 . . . 1 Treads . | . . . . . . . Leg 4 | . . 3 . . . 1 Wheel 2 | 2 . . . . . . Hover . | . . . . . . . Flight . | . . . . . . . Utility 11 | 1 2 1 . 5 . 2 Device 4 | . . . . 2 . 2 Storage 4 | 1 1 . . 2 . . Processor 2 | . . 1 . 1 . . Hackware . | . . . . . . . Protection 1 | . 1 . . . . . Artifact . | . . . . . . . Weapon 7 | 2 2 2 . . . 1 Energy Gun 1 | 1 . . . . . . Energy Cannon . | . . . . . . . Ballistic Gun 6 | 1 2 2 . . . 1 Ballistic Cannon . | . . . . . . . Launcher . | . . . . . . . Special Weapon . | . . . . . . . Impact Weapon . | . . . . . . . Slashing Weapon . | . . . . . . . Piercing Weapon . | . . . . . . . Special Melee Weapon . | . . . . . . . Unidentified Prototypes 2 | . . . . 2 . . Parts Lost 10 | . . . . . . 10 Power 1 | . . . . . . 1 Propulsion 4 | . . . . . . 4 Utility 3 | . . . . . . 3 Weapon 2 | . . . . . . 2 Highest Loss Streak 9 | . . . . . . 9 Average Slot Usage (%) 88 | . 96 93 100 91 88 74 Engine 8 | . 14 11 11 11 11 . Core 2 | . . . . . . 8 Leg 25 | . . 16 33 33 33 25 Wheel 4 | . 28 11 . . . . Device 4 | . . . . . 11 14 Storage 13 | . 14 11 11 17 11 8 Processor 4 | . . 10 11 4 . . Protection 4 | . 11 11 11 2 . . Ballistic Gun 20 | . 25 22 22 22 22 16 Naked Turns . | . . . . . . . Heaviest Build 121 | 11 46 46 46 121 91 97 Greatest Support 32 | 32 32 32 30 30 30 30 Greatest Overweight (x) 27 | 1 1 1 1 4 3 27 Average Overweight (x) 1 | . . 1 1 2 3 3 Largest Inventory Capacity 32 | 6 12 12 12 32 24 24 Average Capacity 19 | 4 8 12 12 22 24 23 Most Carried 12 | 4 4 5 5 12 7 10 Average Carried 6 | 2 1 2 5 7 7 7 Final Capacity 24 | 6 12 12 12 24 24 4 Final Carried 7 | 1 2 5 5 7 7 . Class Distribution -------------------- 48% | Mutant 37% | Hauler-Mutant 13% | Hauler-Skirmisher Dominant Class ---------------- Mutant | -10/Materials Mutant | -9/Materials Mutant | -9/Mines Hauler-Mutant | -9/Exiles Hauler-Mutant | -8/Mines Hauler-Skirmisher | -8/Materials Resources | -11 -10 -9 -9 -9 -8 -8 ----------- Run | Scr Mat Mat Min Exi Min Mat Matter Collected 1048 | 224 . 501 . 60 . 263 Remotely . | . . . . . . . Salvage Created 1044 | . 132 501 . . . 411 Parts 69 | . 15 35 . . . 19 Haulers Intercepted . | . . . . . . . Recyclers Shooed . | . . . . . . . Parts Field Recycled . | . . . . . . . Retrieved Matter . | . . . . . . . Parts Self-Destructed . | . . . . . . . Prevented . | . . . . . . . Kills | -11 -10 -9 -9 -9 -8 -8 ------- Run | Scr Mat Mat Min Exi Min Mat Combat Hostiles Destroyed 21 | . 3 12 . . . 6 Guns 19 | . 3 10 . . . 6 AOE 2 | . . 2 . . . . Classes Destroyed 10 | . 5 4 . . . 1 Worker 2 | . 2 . . . . . Builder 1 | . 1 . . . . . Tunneler 2 | . 2 . . . . . Recycler 2 | . 1 . . . . 1 Operator 1 | . . 1 . . . . Watcher 2 | . . 2 . . . . Swarmer 6 | . 3 3 . . . . Grunt 10 | . . 8 . . . 2 Brawler 1 | . . . . . . 1 Sentry 4 | . . 1 . . . 3 Best Kill Streak 9 | . 9 6 . . . 1 Combat Bots Only 5 | . 3 5 . . . 1 Max Kills in Single Turn 6 | . 6 3 . . . 1 Gunslinging . | . . . . . . . Exploded 2 | . . 2 . . . . Melee . | . . . . . . . Uniques/NPCs Destroyed . | . . . . . . . Combat | -11 -10 -9 -9 -9 -8 -8 -------- Run | Scr Mat Mat Min Exi Min Mat Damage Taken 2060 | . 45 364 . . . 1651 Core 617 | . 12 50 . . . 555 Absorbed by Shields . | . . . . . . . Core Remaining (%) 94 | 100 95 . . . 87 . Volleys Fired 61 | . 4 30 . . . 27 Largest 2 | . 2 2 . . . 2 Hottest 50 | . 46 50 . . . 50 Shots Fired 120 | . 8 59 . . . 53 Gun 120 | . 8 59 . . . 53 Cannon . | . . . . . . . Launcher . | . . . . . . . Special . | . . . . . . . Kinetic 120 | . 8 59 . . . 53 Thermal . | . . . . . . . Explosive . | . . . . . . . Electromagnetic . | . . . . . . . Robot Hit Streak 7 | . 4 6 . . . 7 Robot Miss Streak 4 | . 2 3 . . . 4 Penetration Max . | . . . . . . . Secondary Targets 2 | . 1 1 . . . . Max Gunslinging Chain 1 | . 1 1 . . . . Shots Hit Robots 72 | . 5 36 . . . 31 Core Hits 40 | . 8 20 . . . 12 Critical Hits . | . . . . . . . Critical Kills . | . . . . . . . Critical Parts Destroyed . | . . . . . . . Melee Attacks . | . . . . . . . Impact . | . . . . . . . Slashing . | . . . . . . . Piercing . | . . . . . . . Sneak Attacks . | . . . . . . . Combat Hostiles . | . . . . . . . Follow-up Attacks . | . . . . . . . Damage Inflicted 2198 | . 804 782 . . . 612 Guns 1225 | . 61 569 . . . 595 Cannons . | . . . . . . . Explosions 953 | . 743 210 . . . . Melee . | . . . . . . . Ramming 20 | . . 3 . . . 17 Kinetic 1225 | . 61 569 . . . 595 Thermal 841 | . 743 98 . . . . Explosive . | . . . . . . . Electromagnetic 112 | . . 112 . . . . Impact . | . . . . . . . Slashing . | . . . . . . . Piercing . | . . . . . . . Highest Corruption 1 | . . 1 1 1 1 1 Average Corruption 1 | . . 1 1 1 1 1 Corruption Purged . | . . . . . . . Effects 11 | . . 4 2 3 . 2 Message Errors 2 | . . 1 . 1 . . Energy Discharges 4 | . . 1 2 . . 1 Data Loss (minor) 3 | . . 1 . 2 . . Weapon Failures 2 | . . 1 . . . 1 Overload Shots . | . . . . . . . Overflow Damage 210 | . 210 . . . . . Projectiles . | . . . . . . . Explosions 210 | . 210 . . . . . Melee . | . . . . . . . Knockbacks . | . . . . . . . Impact . | . . . . . . . Kinetic . | . . . . . . . Secondary . | . . . . . . . Self-Inflicted Damage 41 | . . 36 . . . 5 Shots 1 | . . 1 . . . . Rammed 3 | . . 1 . . . 2 Targets Rammed 5 | . . 1 . . . 4 Kicked 2 | . . . . . . 2 Crushed . | . . . . . . . Highest Temperature 90 | . . 90 . . . 22 Average Temperature 17 | . . 25 . . . 5 Received Heat Transfer 627 | . . 105 . . . 522 Siege Activations . | . . . . . . . Robots Corrupted . | . . . . . . . Combat Hostiles . | . . . . . . . Parts Fried . | . . . . . . . Impact Corruptions . | . . . . . . . Robots Melted . | . . . . . . . Combat Hostiles . | . . . . . . . Parts Melted 3 | . 3 . . . . . Heat Transferred 600 | . 500 100 . . . . Parts Sabotaged . | . . . . . . . Parts Stolen . | . . . . . . . Parts Stripped . | . . . . . . . Power Chain Reactions 1 | . . 1 . . . . Missiles Intercepted . | . . . . . . . Alert | -11 -10 -9 -9 -9 -8 -8 ------- Run | Scr Mat Mat Min Exi Min Mat Peak Influence 475 | . 206 475 184 . . 106 Initial 184 | . . 86 184 . . . Average 121 | . 95 322 184 . . 50 Maximum Alert Level 2 | . 1 2 . . . . Low Security (%) 78 | 100 68 24 100 . 100 100 Level 1 11 | . 31 29 . . . . Level 2 9 | . . 46 . . . . Level 3 . | . . . . . . . Level 4 . | . . . . . . . Level 5 . | . . . . . . . High Security . | . . . . . . . Max Security . | . . . . . . . Squads Dispatched 5 | . 1 2 . . . 2 Investigation 2 | . . 1 . . . 1 Extermination . | . . . . . . . Reinforcement 3 | . 1 1 . . . 1 Assault . | . . . . . . . Garrison . | . . . . . . . Intercept . | . . . . . . . Construction Impeded . | . . . . . . . Haulers Reinforced . | . . . . . . . Stealth | -11 -10 -9 -9 -9 -8 -8 --------- Run | Scr Mat Mat Min Exi Min Mat Distress Signals 5 | . 2 2 . . . 1 Communications Jammed . | . . . . . . . Distress Signals . | . . . . . . . Times Spotted 41 | . 6 14 . . . 21 Peak Tracking Total 11 | . 3 5 . . . 11 Tactical Retreats 2 | . . 1 . . . 1 Traps | -11 -10 -9 -9 -9 -8 -8 ------- Run | Scr Mat Mat Min Exi Min Mat Traps Triggered 1 | . . . . . . 1 Indirectly . | . . . . . . . Trap Hack Attempts . | . . . . . . . Triggered . | . . . . . . . Disarmed . | . . . . . . . Reprogrammed . | . . . . . . . Reused . | . . . . . . . Traps Extracted . | . . . . . . . Installed . | . . . . . . . Triggered . | . . . . . . . Machines | -11 -10 -9 -9 -9 -8 -8 ---------- Run | Scr Mat Mat Min Exi Min Mat Machines Disabled 4 | . 3 1 . . . . Max in Single Turn 3 | . 3 1 . . . . Machines Sabotaged . | . . . . . . . Garrisons Compromised . | . . . . . . . Overloaded Fab Kills . | . . . . . . . Fab Network Shutdowns . | . . . . . . . Hacking | -11 -10 -9 -9 -9 -8 -8 --------- Run | Scr Mat Mat Min Exi Min Mat Machines Accessed 11 | . 4 2 . 4 . 1 Terminals 5 | . 4 . . . . 1 Fabricators . | . . . . . . . Repair Stations . | . . . . . . . Recycling Units 1 | . . 1 . . . . Scanalyzers 1 | . . 1 . . . . Garrison Access . | . . . . . . . Total Hacks 63 | . 7 4 . 49 . 3 Successful 61 | . 5 4 . 49 . 3 Failed 2 | . 2 . . . . . Catastrophic . | . . . . . . . Database Lockouts . | . . . . . . . Manual 14 | . 7 1 . 5 . 1 Terminals 10 | . 7 . . . . 3 Fabricators . | . . . . . . . Repair Stations . | . . . . . . . Recycling Units 1 | . . 1 . . . . Scanalyzers 3 | . . 3 . . . . Garrison Access . | . . . . . . . Terminal Hacks 53 | . 1 . . 49 . 3 Record 50 | . . . . 49 . 1 Emergency Access Points 1 | . . . . . . 1 Investigation Status 1 | . . . . . . 1 Recall Investigation 1 | . 1 . . . . . Fabricator Hacks . | . . . . . . . Repair Station Hacks . | . . . . . . . Recycling Unit Hacks 1 | . . 1 . . . . Retrieve Matter 1 | . . 1 . . . . Scanalyzer 2 | . . 2 . . . . Insert Component 1 | . . 1 . . . . Analyze 1 | . . 1 . . . . Garrison Access Hacks . | . . . . . . . Unauthorized Hacks 5 | . 4 1 . . . . Terminals 4 | . 4 . . . . . Track 1 | . 1 . . . . . Botnet 3 | . 3 . . . . . Fabricators . | . . . . . . . Repair Stations . | . . . . . . . Recycling Units . | . . . . . . . Scanalyzers 1 | . . 1 . . . . Extract 1 | . . 1 . . . . Garrison Access . | . . . . . . . Data Cores Recovered 1 | . . 1 . . . . Used . | . . . . . . . Hacking Detections 6 | . 4 1 . . . 1 Full Trace Events 2 | . 1 . . . . 1 Feedback Events . | . . . . . . . Feedback Blocked . | . . . . . . . Robot Schematics Acquired . | . . . . . . . Robots Built . | . . . . . . . Matter . | . . . . . . . Time . | . . . . . . . Total Robot Build Rating . | . . . . . . . Part Schematics Acquired 5 | . . 5 . . . . Parts Built . | . . . . . . . Matter . | . . . . . . . Time . | . . . . . . . Total Part Build Rating . | . . . . . . . Parts Repaired . | . . . . . . . Time . | . . . . . . . Parts Recycled . | . . . . . . . Recycled Matter . | . . . . . . . Retrieved Matter . | . . . . . . . Retrieved Components . | . . . . . . . Parts Scanalyzed 1 | . . 1 . . . . Part Schematics Acquired 1 | . . 1 . . . . Parts Damaged . | . . . . . . . Bothacking | -11 -10 -9 -9 -9 -8 -8 ------------ Run | Scr Mat Mat Min Exi Min Mat Used RIF Installer . | . . . . . . . Robots Hacked . | . . . . . . . Non-combat . | . . . . . . . Combat . | . . . . . . . Robot Hacks Applied . | . . . . . . . Relay Couplers Released . | . . . . . . . Robots Rewired . | . . . . . . . Allies Hacked . | . . . . . . . Hacks Repelled . | . . . . . . . Allies | -11 -10 -9 -9 -9 -8 -8 -------- Run | Scr Mat Mat Min Exi Min Mat Total Allies . | . . . . . . . Largest Group . | . . . . . . . Highest-Rated Group . | . . . . . . . Highest-Rated Ally . | . . . . . . . Total Orders . | . . . . . . . Ally Attacks . | . . . . . . . Total Damage . | . . . . . . . Kills . | . . . . . . . Allies Corrupted . | . . . . . . . Allies Melted . | . . . . . . . Intel | -11 -10 -9 -9 -9 -8 -8 ------- Run | Scr Mat Mat Min Exi Min Mat Robot Analysis Total . | . . . . . . . Derelict Logs Recovered . | . . . . . . . Drone Launches . | . . . . . . . Drone Recoveries . | . . . . . . . Exploration | -11 -10 -9 -9 -9 -8 -8 ------------- Run | Scr Mat Mat Min Exi Min Mat Turns Passed 2882 | 62 292 356 146 1188 134 704 Spaces Moved 1462 | 53 200 188 98 620 64 239 Core 18 | 16 . . . . . 2 Treads . | . . . . . . . Legs 1109 | . . 90 98 620 64 237 Wheels 335 | 37 200 98 . . . . Hover . | . . . . . . . Flight . | . . . . . . . Fastest Speed 50 | 50 100 110 150 150 210 50 Average Speed 168 | 88 101 129 150 188 210 217 Slowest Speed 1400 | 100 110 150 150 240 210 1400 Overloaded Moves . | . . . . . . . Propulsion Burnouts . | . . . . . . . Robots Hopped . | . . . . . . . Cave-ins Triggered . | . . . . . . . Exploration Rate (%) 33 | 3 49 21 29 94 16 23 Regions Visited 6 Branch Regions 3 Pre-discovered Areas 1 | . . . . 1 . . Known Exits Taken 3 | . . 1 1 1 . . Unknown Exits Taken 3 | 1 1 . . . 1 . Scrap Searched 1 | . . . 1 . . . Spaces Dug . | . . . . . . . Terrain Destroyed 40 | . 38 2 . . . . Melee . | . . . . . . . Projectile . | . . . . . . . AOE 40 | . 38 2 . . . . Terrain Rammed . | . . . . . . . Walls Destroyed . | . . . . . . . Machines Disabled . | . . . . . . . Actions | -11 -10 -9 -9 -9 -8 -8 --------- Run | Scr Mat Mat Min Exi Min Mat Total 1773 | 66 281 252 97 642 64 371 Wait 166 | . 66 12 . . 1 87 Move 1456 | 52 199 187 97 619 63 239 Hop . | . . . . . . . Pick Up 32 | 5 5 8 . 6 . 8 Fast Attach 6 | 5 . . . 1 . . Attach 12 | 1 3 2 . 2 . 4 Detach 2 | . . . . 2 . . Swap 8 | . 1 4 . 2 . 1 Drop 20 | 3 3 3 . 10 . 1 Fire 61 | . 4 30 . . . 27 Melee . | . . . . . . . Ram . | . . . . . . . Kick 5 | . . 1 . . . 4 Crush . | . . . . . . . Escape Stasis . | . . . . . . . Rewire 5 | . . 5 . . . . Trap . | . . . . . . . Miscellaneous . | . . . . . . . Route ------- -11/Scrapyard -10/Materials (discovered 2 exits: *Mat / [*Min]) -9/Materials -9/Mines -9/Exiles (discovered 2 exits: *Min x2) -8/Mines -8/Materials (discovered 1 exit: [*Fac]) History --------- Turn | Location | Event 3 | -11/Scrapyard | Discovered new exit (range 15) 63 | -11/Scrapyard | Entered Materials 197 | -10/Materials | Discovered new exit (range 12) 215 | -10/Materials | Discovered new exit (range 8) 312 | -10/Materials | Build established: Mutant 355 | -10/Materials | Entered another Materials area 355 | -9/Materials | Evolved 2 slots: Propulsion x1, Utility x1 626 | -9/Materials | Discovered new exit (range 16) 665 | -9/Materials | Identified exit to Mines 711 | -9/Materials | Entered Mines 795 | -9/Mines | Met a Derelict bent on vengeance 849 | -9/Mines | Deemed a non-threat by the Exiles lab entrance 849 | -9/Mines | Discovered new exit (range 5) 855 | -9/Mines | Identified exit to Exiles 857 | -9/Mines | Entered Exiles 898 | -9/Exiles | Met 8R-AWN 907 | -9/Exiles | Discovered new exit (range 14) 922 | -9/Exiles | Identified exit to Mines 974 | -9/Exiles | Met EX-HEX 1073 | -9/Exiles | Met EX-BIN 1105 | -9/Exiles | Aligned with FarCom system 1106 | -9/Exiles | Given EX-Vault access code 1156 | -9/Exiles | Opened EX-Vault 1163 | -9/Exiles | Found Prototype Device 1165 | -9/Exiles | Identified PSU Rigger 1169 | -9/Exiles | Found Prototype Processor 1170 | -9/Exiles | Identified Modified TNC 1174 | -9/Exiles | Found Prototype Device 1243 | -9/Exiles | Warned to stay clear of 0b10 Research branches 1445 | -9/Exiles | Met EX-DEC 1485 | -9/Exiles | Visited The Gauntlet 1684 | -9/Exiles | Build established: Hauler-Mutant 1870 | -9/Exiles | Learned location of Zion (-6) 1987 | -9/Exiles | Discovered exit to Mines (range 12) 2045 | -9/Exiles | Stole two prototypes: PSU Rigger, Army-in-a-Box 2045 | -9/Exiles | Entered Mines 2155 | -8/Mines | Discovered new exit (range 13) 2179 | -8/Mines | Entered Materials 2179 | -8/Materials | Evolved 2 slots: Utility x2 2749 | -8/Materials | Build established: Hauler-Skirmisher 2836 | -8/Materials | Discovered new exit (range 16) 2874 | -8/Materials | Core integrity fell below 50% 2880 | -8/Materials | Core integrity fell below 20% 2883 | -8/Materials | Destroyed by G-47 Trooper with Particle Gun Last Messages --------------- 02834_ Hpw. Tractor Beam destroyed. 02836_ EXIT=FOUND 02838_ ALERT: Hostiles spotted, dispatching reinforcements to Terminal M006. 02838_ System corrupted: Minigun jammed. 02841_ Minigun destroyed. 02841_ Slammed into K-01 Serf. 02843_ Minigun destroyed. 02845_ Aluminum Leg destroyed. 02852_ Nuclear Core destroyed. 02857_ Kicked S-10 Pest out of the way. 02861_ S-10 Pest destroyed. 02862_ System corrupted: Energy discharge (-38). 02865_ Aluminum Leg destroyed. 02865_ Sensor Array destroyed. 02868_ K-01 Serf collects debris. 02874_ Humpback destroyed. 02876_ Knocked back. 02878_ U-05 Engineer lays Concrete. 02882_ Knocked back. Map ----- +----------------------------------------------------+ | ??????????????????????????????????????? | | ??????????????????????????????????????? | | ??????????????????????????????????????? | | ??????????????????????????????????????? | | ??????????????????????????????????????? | | ??????????????????????????????????????? | | ??????????????????????????????????????? | | ??????????????????????????????????????? | | ??????????????????????????????????????? | | ???????????????????g??????????????????? | | ????????????????????g?????????????????? | | ??????????????????????????????????????? | | ??????????????????? ?????????????????? | | ??????????????????# #???????? ???????? | | ??????????????????# g#??????? #??????? | | ??????????????????# #??????? #??????? | | ??????????????????# #??????? #??????? | | ??????????????????# #?????## ###????? | | ???????#??????????# #????? ?????? | | ???????# ?????????# #????? ??????? | | ???????# ????????# #????? ???????? | | ???????# ???????# #????? #???????? | | ???????? ??????# #????? #???????? | | ?????????? ?????# #????? #???????? | | ????????####/###### ###### #???????? | | ????????# u @ g[ #???????? | | ????????# < u !gs%s g #???????? | | ????????# g=bs%% % #???????? | | ?#############/###########+####???????? | | ?# """ #??? ???##### #???????? | | ?# " " #?? ""???# g "T" #???????? | | ?# " " #? ""???##### ##??????? | | ?# ## ""???????# !! #??????? | | ?# ## ???????# ! ##??????? | | ?# ## ???????# ! #???????? | | ?######+## ?????????######+####### # | | ?????#* !# ?????????????# | | ?????# #####?????????????# % | | ?????# ! #?????????????????#*% | | ####### ##?????????????????# ! #######+ | | # # #?????##########???# #??????? | | # # ####### #???# #??????? | | # +* # #???# #??????? | | # """ #!#### # ##### #??????? | | # """ #+#### # + % #??????? | | # """ # # # * ##### #??????? | | # # # + * #???## ##??????? | | ##+#### # # #????# #???????? | | ?# #??# # # #????# #???????? | | ##+#### # # #????# #???????? | +----------------------------------------------------+ Best States ------------- Heat Dissipation 31 Energy Generation 14 Energy Capacity 240 Matter Stores 450 Matter Capacity 450 Sight Range 16 Robot Scan Range 10 Terrain Scan Density 10 Armor Coverage 150 Evasion (%) 50 Item Schematics ----------------- Med. Matter Pod | -9/Materials | Scanalyzed Datajack | -9/Materials | Extracted Imp. Light Cannon | -9/Materials | Extracted Arm. Wheel | -9/Materials | Extracted Flail | -9/Materials | Extracted Robot Schematics ------------------ None Fabricated ------------ Nothing Alien Tech Used ----------------- None Achievements -------------- Brute Force Librarian Challenges ------------ None Game ------ Seed GuidedRecyclingCannon Manual? 0 Play Time 00:32:18 Cumulative 10.3 hours Start 2021.03.17 @ 16:45:51 End 2021.03.17 @ 17:14:06 Sessions 1 Manual Loads 0 Difficulty Rogue Special Mode None Game No. 34 Rogue 34 Adventurer 0 Explorer 0 Win Type - Total 0 Types 0/0/0/0/0/0/0/0/0 Lore% 15 Gallery% 19 Achievement% 19 Wizard Run 0 Options --------- ASCII 0 Keyboard 0 Movement Mouse Keybinds 0 Fullscreen 2 Font 16/SmallcapsGlow Map View 76x50 Tactical HUD 1 Map Filters NONE Filters NONE Steam 1 RUN: ca26b30a-0950-4db3-81df-d9b958a8719b